bitfinex/quotes_BTCUSD_20220731
["timestamp","ask_amount","ask_price","bid_price","bid_amount"]
[1659308551163,0.3,23340.0,23334.0,0.09284173]
[1659308551164,0.73264416,23339.0,23334.0,0.09284173]
[1659308551564,0.73264416,23338.0,23336.0,0.107104]
[1659308551788,1.2760315,23337.0,23336.0,0.107104]
[1659308552020,1.24135834,23337.0,23336.0,0.107104]
[1659308552899,1.2760315,23337.0,23336.0,0.107104]
[1659308554034,1.27595845,23337.0,23336.0,0.107104]
[1659308554272,1.28462673,23337.0,23336.0,0.107104]
[1659308556073,1.28462673,23337.0,23334.0,0.04284173]
[1659308556294,0.73264416,23336.0,23334.0,0.04284173]
[1659308556525,0.303976,23335.0,23334.0,0.09284173]
[1659308556758,0.353976,23335.0,23334.0,0.09284173]
[1659308557193,0.303976,23335.0,23334.0,0.09284173]
[1659308557434,0.303976,23335.0,23334.0,0.04284173]
[1659308557687,0.303976,23335.0,23334.0,0.14995173]
[1659308558557,0.00083292,23335.0,23334.0,0.14995173]
[1659308558781,0.00083292,23335.0,23334.0,0.30704729]
[1659308559010,0.00083292,23335.0,23334.0,0.19995029]
[1659308559522,0.04363292,23335.0,23334.0,0.04284029]
[1659308559756,0.34760892,23335.0,23334.0,0.04284029]
[1659308560202,0.34760892,23335.0,23332.0,0.107109]
[1659308560443,0.05,23333.0,23330.0,0.14997658]
[1659308560672,0.05,23331.0,23330.0,0.14997658]
[1659308560904,0.42870616,23333.0,23330.0,0.14997658]
[1659308561118,0.303976,23332.0,23330.0,0.14997658]
[1659308561339,0.42870616,23333.0,23330.0,0.14997658]
[1659308561340,0.05,23331.0,23330.0,0.14997658]
[1659308561583,0.42870616,23333.0,23330.0,0.14997658]
[1659308561796,0.00083292,23335.0,23330.0,0.73080974]
[1659308562036,0.00083292,23335.0,23331.0,0.3]
[1659308562274,0.00083292,23335.0,23331.0,0.407102]
[1659308562488,0.00083292,23335.0,23332.0,0.44134964]
[1659308562715,0.00083292,23335.0,23333.0,0.407088]
[1659308562935,0.00083292,23335.0,23334.0,0.10189]
[1659308563876,0.98347216,23335.0,23333.0,0.01264348]
[1659308564107,0.98347216,23335.0,23328.0,0.04284687]
[1659308564108,0.78268216,23334.0,23328.0,0.04284687]
[1659308564369,0.47870616,23334.0,23329.0,0.019]
[1659308564587,0.303976,23333.0,23329.0,0.019]
[1659308564824,0.04334144,23332.0,23329.0,0.019]
[1659308565284,0.47870616,23334.0,23329.0,0.019]
[1659308565512,0.303976,23333.0,23329.0,0.019]
[1659308565730,0.47870616,23334.0,23328.0,0.04284687]
[1659308566197,0.42870616,23333.0,23328.0,0.04284687]
[1659308566948,0.42870616,23333.0,23328.0,0.14996387]
[1659308567404,0.42870616,23333.0,23328.0,0.25708087]
[1659308567628,0.42870616,23333.0,23328.0,0.30708087]
[1659308567861,1.08973778,23338.0,23329.0,0.159005]
[1659308568087,1.08973778,23338.0,23330.0,0.49995435]
[1659308568088,0.42870616,23337.0,23330.0,0.49995435]
[1659308568310,0.5528,23338.0,23332.0,0.107096]
[1659308568311,0.42870616,23338.0,23332.0,0.107096]
[1659308568510,0.42870616,23338.0,23334.0,0.04283799]
[1659308568739,0.52494392,23336.0,23334.0,0.09283799]
[1659308569218,0.303976,23335.0,23334.0,0.09283799]
[1659308569449,0.52494392,23336.0,23334.0,0.04283799]
[1659308569666,0.04334144,23337.0,23334.0,0.04283799]
[1659308569874,0.04334144,23337.0,23334.0,0.09283799]
[1659308570317,0.42870616,23338.0,23334.0,0.09283799]
[1659308570543,0.303976,23337.0,23334.0,0.09283799]
[1659308570817,0.42870616,23338.0,23334.0,0.09283799]
[1659308570937,0.42870616,23338.0,23334.0,0.19993499]
[1659308571142,0.303976,23337.0,23334.0,0.19993499]
[1659308571366,0.303976,23336.0,23334.0,0.19993499]
[1659308571596,0.04334144,23337.0,23334.0,0.19993499]
[1659308572497,0.303976,23336.0,23334.0,0.19993499]
[1659308572712,1.0136917,23338.0,23334.0,0.19993499]
[1659308572944,0.303976,23337.0,23334.0,0.19993499]
[1659308573175,0.303976,23336.0,23334.0,0.19993499]
[1659308573408,1.0136917,23338.0,23334.0,0.19993499]
[1659308573607,0.303976,23337.0,23334.0,0.19993499]
[1659308573844,0.303976,23336.0,23334.0,0.19993499]
[1659308574087,0.303976,23335.0,23334.0,0.14993499]
[1659308574293,0.303976,23335.0,23334.0,0.19993499]
[1659308575005,0.42870616,23336.0,23334.0,0.19993499]
[1659308575262,0.303976,23335.0,23334.0,0.19993499]
[1659308575497,0.214211,23341.0,23334.0,0.19993499]
[1659308575498,0.5555,23342.0,23334.0,0.19993499]
[1659308575710,0.5555,23342.0,23337.0,0.107092]
[1659308575711,0.73268216,23341.0,23337.0,0.107092]
[1659308575968,0.73268216,23340.0,23337.0,0.107092]
[1659308576194,0.303976,23339.0,23337.0,0.157092]
[1659308576417,0.4720476,23340.0,23337.0,0.157092]
[1659308576662,0.0005,23338.0,23337.0,0.157092]
[1659308576877,0.0005,23338.0,23337.0,0.6]
[1659308577124,0.0005,23338.0,23337.0,0.543254]
[1659308577575,0.0005,23338.0,23337.0,0.97196016]
[1659308577800,0.0005,23338.0,23337.0,0.98460364]
[1659308578707,0.0005,23338.0,23337.0,0.97196016]
[1659308578956,0.0005,23338.0,23337.0,0.91110616]
[1659308579845,0.59617527,23338.0,23336.0,0.14989432]
[1659308580062,0.55283383,23338.0,23336.0,0.04283632]
[1659308580285,0.55283383,23338.0,23333.0,0.5634]
[1659308580286,0.303976,23337.0,23333.0,0.5634]
[1659308580506,0.55283383,23338.0,23332.0,0.12284029]
[1659308580731,0.98153999,23338.0,23332.0,0.12284029]
[1659308581628,0.98153999,23338.0,23332.0,0.04284029]
[1659308583773,0.98153999,23338.0,23332.0,0.14993529]
[1659308584030,0.42870616,23337.0,23332.0,0.04284029]
[1659308584479,0.303976,23336.0,23332.0,0.04284029]
[1659308584695,0.42870616,23337.0,23332.0,0.04284029]
[1659308585394,0.42870616,23337.0,23332.0,0.14993929]
[1659308585857,0.0005,23338.0,23333.0,0.107098]
[1659308586069,0.0005,23338.0,23333.0,0.407098]
[1659308586558,0.0005,23338.0,23333.0,0.52684148]
[1659308586777,0.0005,23338.0,23334.0,0.41410618]
[1659308587013,0.0005,23338.0,23335.0,0.40189]
[1659308587232,0.0005,23338.0,23336.0,0.107088]
[1659308587701,0.0005,23338.0,23336.0,0.214175]
[1659308588165,0.0005,23338.0,23337.0,1.208974]
[1659308588393,0.0005,23338.0,23337.0,1.619836]
[1659308588629,0.00042497,23338.0,23337.0,2.04853516]
[1659308588882,0.00042497,23338.0,23337.0,2.06117864]
[1659308589350,0.00042497,23338.0,23337.0,1.01117864]
[1659308590129,0.00042497,23338.0,23337.0,0.99853516]
[1659308590461,0.00042497,23338.0,23337.0,1.05753516]
[1659308590926,0.00042497,23338.0,23337.0,1.00753516]
[1659308591153,0.00042497,23338.0,23337.0,0.72017864]
[1659308591398,0.04322497,23338.0,23337.0,0.059]
[1659308591630,0.04322497,23338.0,23336.0,0.107088]
[1659308591853,0.00042497,23338.0,23336.0,0.107088]
[1659308592094,0.00042497,23338.0,23337.0,0.05189]
[1659308592762,0.00042497,23338.0,23336.0,0.08]
[1659308593429,0.55608234,23337.0,23336.0,0.08]
[1659308593754,0.55608234,23337.0,23335.0,0.0642478]
[1659308594050,0.56293206,23337.0,23335.0,0.0642478]
[1659308594267,0.58893694,23337.0,23336.0,0.029]
[1659308594480,0.55426378,23337.0,23336.0,0.029]
[1659308594649,0.00042497,23338.0,23336.0,0.029]
[1659308595273,0.00042497,23338.0,23336.0,0.136081]
[1659308595654,0.00042497,23338.0,23336.0,0.107081]
[1659308595864,0.00042497,23338.0,23336.0,0.11972448]
[1659308596091,0.00042497,23338.0,23336.0,0.22680748]
[1659308596317,0.00042497,23338.0,23336.0,0.25480748]
[1659308596686,0.48742928,23338.0,23336.0,0.542164]
[1659308596827,0.0005,23337.0,23336.0,0.542164]
[1659308597503,0.0005,23337.0,23336.0,1.04437164]
[1659308597722,0.0005,23337.0,23336.0,1.72157164]
[1659308598224,0.0005,23337.0,23336.0,2.12188664]
[1659308598433,0.0005,23337.0,23336.0,2.20188664]
[1659308598625,0.00032452,23337.0,23336.0,2.20188664]
[1659308599545,0.00032452,23337.0,23336.0,2.12188664]
[1659308600442,0.00032452,23337.0,23336.0,2.18888664]
[1659308601653,0.00032452,23337.0,23336.0,2.12188664]
[1659308602273,0.00032452,23337.0,23336.0,2.18888664]
[1659308603658,0.00032452,23337.0,23336.0,2.05648664]
[1659308605753,0.00032452,23337.0,23336.0,1.98948664]
[1659308606256,0.00032452,23337.0,23336.0,2.05648664]
[1659308607691,0.00032452,23337.0,23336.0,1.98948664]
[1659308608182,0.00032452,23337.0,23336.0,2.04548664]
[1659308608615,0.00032452,23337.0,23336.0,2.17788664]
[1659308609633,0.009,23345.0,23344.0,0.5]
[1659308609857,0.009,23345.0,23344.0,1.91814616]
[1659308610087,0.009,23345.0,23344.0,1.99160964]
[1659308610324,0.009,23345.0,23344.0,2.08960964]
[1659308610537,0.009,23345.0,23344.0,2.03960964]
[1659308610786,0.009,23345.0,23344.0,0.52670616]
[1659308611019,0.009,23345.0,23344.0,0.098]
[1659308611229,0.52114424,23346.0,23344.0,0.048]
[1659308611458,0.9498504,23346.0,23344.0,0.048]
[1659308611681,0.303976,23345.0,23339.0,0.04282394]
[1659308611934,0.9498504,23346.0,23339.0,0.4715301]
[1659308612447,0.5704879,23350.0,23341.0,0.1309]
[1659308612673,0.5704879,23350.0,23341.0,0.55960616]
[1659308612674,0.42870616,23349.0,23341.0,0.55960616]
[1659308612906,0.303976,23348.0,23341.0,0.60960616]
[1659308613137,0.42870616,23348.0,23341.0,0.60960616]
[1659308613411,0.42870616,23348.0,23341.0,0.47870616]
[1659308613641,0.42870616,23348.0,23341.0,0.05]
[1659308613863,0.303976,23347.0,23342.0,0.0428219]
[1659308614081,0.52078555,23345.0,23342.0,0.0428219]
[1659308614309,0.34731744,23344.0,23342.0,0.0428219]
[1659308614535,0.34731744,23344.0,23341.0,0.035]
[1659308614536,0.653976,23343.0,23341.0,0.035]
[1659308614762,0.953976,23342.0,23341.0,0.035]
[1659308615473,0.353976,23342.0,23341.0,0.035]
[1659308615753,0.05,23342.0,23337.0,0.107068]
[1659308616000,0.05,23342.0,23337.0,0.53577416]
[1659308616459,0.05,23342.0,23341.0,0.079]
[1659308616660,0.303976,23342.0,23341.0,0.079]
[1659308616865,0.303976,23342.0,23341.0,0.129]
[1659308617837,0.303976,23342.0,23341.0,0.05]
[1659308618060,0.8093,23349.0,23341.0,0.42870616]
[1659308618285,0.42870616,23349.0,23343.0,0.1309]
[1659308618501,0.03921544,23353.0,23345.0,0.1324]
[1659308618502,0.0077,23353.0,23345.0,0.1324]
[1659308618732,0.0077,23353.0,23345.0,0.91110616]
[1659308618961,0.0077,23353.0,23345.0,1.03078364]
[1659308620130,0.0077,23353.0,23346.0,0.04281373]
[1659308620348,0.0077,23353.0,23346.0,0.14984173]
[1659308620790,0.0077,23353.0,23347.0,0.107029]
[1659308621067,0.0077,23353.0,23347.0,0.157029]
[1659308621302,0.0077,23353.0,23349.0,0.65]
[1659308621516,0.0077,23353.0,23349.0,1.25684693]
[1659308622461,0.0077,23353.0,23349.0,1.03684693]
[1659308622681,0.0077,23353.0,23349.0,0.17280793]
[1659308623594,0.0077,23353.0,23349.0,0.47280793]
[1659308623834,0.0077,23353.0,23349.0,0.41386893]
[1659308624062,0.0077,23353.0,23349.0,0.36386893]
[1659308624280,0.0077,23353.0,23349.0,0.49386893]
[1659308625665,0.0077,23353.0,23349.0,0.41386893]
[1659308626347,0.0077,23353.0,23349.0,0.49386893]
[1659308626580,0.0077,23353.0,23349.0,0.79386893]
[1659308626800,0.0077,23353.0,23349.0,0.49386893]
[1659308627017,0.0077,23353.0,23349.0,0.79386893]
[1659308627235,0.0077,23353.0,23349.0,0.49386893]
[1659308627686,0.0077,23353.0,23349.0,0.41386893]
[1659308628243,0.0077,23353.0,23349.0,0.49386893]
[1659308628451,0.0077,23353.0,23349.0,0.79386893]
[1659308628665,0.0077,23353.0,23349.0,1.22257509]
[1659308628957,0.0077,23353.0,23352.0,0.05189]
[1659308629174,0.0022,23357.0,23356.0,0.05189]
[1659308629415,0.0022,23357.0,23356.0,0.91149616]
[1659308629646,0.0032,23359.0,23357.0,0.05409]
[1659308629870,0.0032,23359.0,23358.0,0.91299616]
[1659308629871,0.0022,23359.0,23358.0,0.91299616]
[1659308630088,0.0022,23359.0,23358.0,1.31995816]
[1659308630310,0.0022,23359.0,23358.0,1.43070716]
[1659308630545,0.0022,23359.0,23358.0,1.48070716]
[1659308631198,0.0022,23359.0,23358.0,1.23070716]
[1659308631963,0.0022,23359.0,23358.0,1.26276716]
[1659308632169,0.0022,23359.0,23358.0,1.34276716]
[1659308632385,0.0022,23359.0,23358.0,1.81153994]
[1659308633082,0.0022,23359.0,23358.0,1.15881716]
[1659308633311,0.0022,23359.0,23358.0,0.67641716]
[1659308633532,0.0022,23359.0,23358.0,0.59641716]
[1659308634224,0.0022,23359.0,23358.0,0.67641716]
[1659308634866,0.0022,23359.0,23358.0,0.72641716]
[1659308635087,0.0022,23359.0,23358.0,0.91945516]
[1659308635551,0.0022,23359.0,23358.0,0.83945516]
[1659308636200,0.0022,23359.0,23358.0,0.91945516]
[1659308637549,0.0022,23359.0,23358.0,0.83945516]
[1659308638230,0.0022,23359.0,23358.0,0.91945516]
[1659308638455,0.0022,23359.0,23358.0,0.96945516]
[1659308638688,0.0022,23367.0,23361.0,0.17954]
[1659308638909,0.0022,23367.0,23364.0,0.10189]
[1659308639129,0.0022,23367.0,23364.0,0.72222116]
[1659308639406,0.0022,23367.0,23364.0,1.03486464]
[1659308639629,0.0022,23365.0,23364.0,1.48246464]
[1659308639845,0.0022,23367.0,23366.0,0.25189]
[1659308640066,0.0022,23367.0,23366.0,1.66899616]
[1659308640307,0.0022,23367.0,23366.0,1.72970516]
[1659308640780,0.0022,23367.0,23366.0,2.10047316]
[1659308640997,0.0001,23367.0,23366.0,2.10047316]
[1659308641219,0.0001,23367.0,23366.0,2.10040121]
[1659308641443,0.0001,23367.0,23366.0,1.72963321]
[1659308641677,0.0001,23367.0,23366.0,1.59723321]
[1659308641959,0.0001,23367.0,23366.0,1.04541516]
[1659308642178,0.0001,23367.0,23366.0,0.56941516]
[1659308642407,0.0001,23367.0,23366.0,0.140709]
[1659308642623,0.0001,23367.0,23366.0,0.08]
[1659308643304,0.0429,23367.0,23366.0,0.08]
[1659308643533,0.0429,23367.0,23364.0,0.0427688]
[1659308643534,0.0929,23367.0,23364.0,0.0427688]
[1659308643757,0.0501,23367.0,23361.0,0.574]
[1659308643993,0.0501,23367.0,23362.0,0.42870616]
[1659308643994,0.0001,23367.0,23362.0,0.42870616]
[1659308644211,0.0001,23367.0,23364.0,0.079]
[1659308644672,0.303976,23366.0,23364.0,0.079]
[1659308644893,0.03467316,23365.0,23364.0,0.079]
[1659308645114,0.0001,23367.0,23364.0,0.129]
[1659308645313,0.05,23365.0,23364.0,0.079]
[1659308645554,0.0001,23367.0,23361.0,0.574]
[1659308645760,0.0001,23367.0,23361.0,1.00270616]
[1659308646205,0.0001,23367.0,23361.0,1.10966116]
[1659308647370,0.42880616,23367.0,23362.0,0.35]
[1659308647596,0.47880616,23367.0,23362.0,0.35]
[1659308647810,0.42880616,23367.0,23362.0,0.35]
[1659308649658,0.47880616,23367.0,23362.0,0.35]
[1659308649886,0.47880616,23367.0,23357.0,0.6211]
[1659308649887,0.05,23363.0,23357.0,0.6211]
[1659308650099,0.05,23361.0,23356.0,0.04544526]
[1659308650347,0.05,23361.0,23353.0,0.6075]
[1659308650348,0.73268216,23360.0,23353.0,0.6075]
[1659308650557,0.73268216,23360.0,23353.0,1.06882593]
[1659308650558,0.05,23357.0,23353.0,1.06882593]
[1659308650782,0.04334144,23356.0,23351.0,0.5894]
[1659308651036,0.04334144,23356.0,23352.0,0.42870616]
[1659308651487,0.60012492,23356.0,23352.0,0.42870616]
[1659308651713,0.60012492,23356.0,23351.0,0.5894]
[1659308651714,0.05,23355.0,23351.0,0.42870616]
[1659308651939,0.05,23355.0,23350.0,0.42870616]
[1659308652172,0.05,23355.0,23349.0,0.99910616]
[1659308652400,0.05,23355.0,23351.0,0.021]
[1659308652401,0.1,23355.0,23351.0,0.021]
[1659308652847,0.52870616,23355.0,23351.0,0.021]
[1659308653287,0.47870616,23355.0,23351.0,0.021]
[1659308653754,0.47870616,23355.0,23349.0,0.7704]
[1659308653973,0.04334144,23356.0,23350.0,0.21058982]
[1659308654198,0.04334144,23356.0,23350.0,0.48415346]
[1659308654420,0.5847,23361.0,23351.0,0.62049016]
[1659308654647,0.42870616,23360.0,23353.0,0.04279882]
[1659308654943,0.303976,23359.0,23353.0,0.04279882]
[1659308655167,0.73268216,23358.0,23352.0,0.3]
[1659308655402,0.303976,23357.0,23352.0,0.3]
[1659308655645,0.05,23357.0,23351.0,0.50270616]
[1659308655894,0.05,23357.0,23352.0,0.3]
[1659308656108,0.47870616,23358.0,23352.0,0.34280323]
[1659308656354,0.47870616,23358.0,23353.0,0.06689]
[1659308656563,0.42870616,23358.0,23353.0,0.35]
[1659308656784,0.303976,23357.0,23353.0,0.11689]
[1659308656994,0.04334144,23356.0,23353.0,0.05]
[1659308657213,0.42870616,23358.0,23353.0,0.05]
[1659308657457,0.303976,23357.0,23353.0,0.05]
[1659308657682,0.42870616,23358.0,23353.0,0.05]
[1659308658137,0.303976,23357.0,23353.0,0.05]
[1659308658404,0.42870616,23356.0,23353.0,0.05]
[1659308658633,0.08,23358.0,23353.0,0.05]
[1659308658860,0.50870616,23358.0,23353.0,0.05]
[1659308659307,0.08,23358.0,23353.0,0.05]
[1659308659556,0.08,23358.0,23353.0,0.06264348]
[1659308659762,0.5277,23362.0,23353.0,0.36264348]
[1659308659996,0.5277,23362.0,23355.0,0.04279507]
[1659308659997,0.73268216,23361.0,23355.0,0.04279507]
[1659308660246,0.73268216,23360.0,23355.0,0.04279507]
[1659308660458,0.73268216,23359.0,23355.0,0.04279507]
[1659308660609,0.34731744,23358.0,23355.0,0.04279507]
[1659308660835,0.303976,23357.0,23355.0,0.04279507]
[1659308660985,0.04334144,23358.0,23355.0,0.04279507]
[1659308661188,0.303976,23357.0,23355.0,0.04279507]
[1659308661393,0.04334144,23358.0,23355.0,0.04279507]
[1659308661595,0.303976,23357.0,23355.0,0.04279507]
[1659308661826,0.05,23356.0,23355.0,0.04279507]
[1659308662058,0.04334144,23358.0,23355.0,0.04279507]
[1659308662281,0.42870616,23359.0,23355.0,0.09379507]
[1659308662537,0.303976,23358.0,23355.0,0.14379507]
[1659308662740,0.42870616,23359.0,23355.0,0.14379507]
[1659308662940,0.303976,23358.0,23355.0,0.14379507]
[1659308663243,0.42870616,23359.0,23355.0,0.14379507]
[1659308663244,0.303976,23357.0,23355.0,0.14379507]
[1659308663491,0.42870616,23359.0,23355.0,0.14379507]
[1659308663614,0.34731744,23358.0,23355.0,0.14379507]
[1659308663865,0.04334144,23358.0,23355.0,0.14379507]
[1659308664087,0.42870616,23359.0,23357.0,0.2]
[1659308664289,0.303976,23358.0,23357.0,0.25]
[1659308664495,0.303976,23358.0,23357.0,0.05]
[1659308664754,0.303976,23358.0,23356.0,0.05]
[1659308664976,0.42870616,23359.0,23358.0,0.00010479]
[1659308665142,0.73268216,23359.0,23358.0,0.00010479]
[1659308666174,0.73268216,23359.0,23358.0,0.03410479]
[1659308667566,0.73268216,23359.0,23358.0,0.00010479]
[1659308667899,0.7760236,23359.0,23358.0,0.00010479]
[1659308668038,0.303976,23359.0,23358.0,0.00010479]
[1659308668264,0.303976,23359.0,23358.0,0.03410479]
[1659308669084,0.08254984,23364.0,23358.0,0.03410479]
[1659308669303,0.73268216,23363.0,23359.0,0.04279518]
[1659308669566,0.73268216,23362.0,23359.0,0.04279518]
[1659308669763,0.654,23365.0,23360.0,0.42870616]
[1659308669996,0.654,23365.0,23360.0,0.66807316]
[1659308670245,0.0006,23367.0,23361.0,0.36264348]
[1659308670476,0.0006,23367.0,23362.0,0.04278399]
[1659308670477,0.42930616,23367.0,23362.0,0.04278399]
[1659308670698,0.42930616,23367.0,23363.0,0.05]
[1659308670932,0.42930616,23367.0,23363.0,0.11689]
[1659308671150,0.04334144,23366.0,23363.0,0.05]
[1659308671598,0.303976,23365.0,23363.0,0.05]
[1659308671821,0.04334144,23366.0,23363.0,0.05]
[1659308671822,0.34731744,23366.0,23363.0,0.05]
[1659308672039,0.303976,23365.0,23363.0,0.05]
[1659308672270,0.079,23365.0,23363.0,0.05]
[1659308672494,0.81168216,23365.0,23363.0,0.05]
[1659308672750,0.303976,23364.0,23359.0,0.3]
[1659308672944,0.55770616,23365.0,23359.0,0.35]
[1659308673161,0.55770616,23365.0,23358.0,0.04289902]
[1659308673162,0.303976,23364.0,23358.0,0.04289902]
[1659308673416,0.303976,23364.0,23358.0,0.14988102]
[1659308673417,0.42870616,23364.0,23358.0,0.14988102]
[1659308673644,0.42870616,23363.0,23358.0,0.14988102]
[1659308674229,0.42870616,23363.0,23359.0,0.106977]
[1659308674444,0.42870616,23363.0,23358.0,0.08289902]
[1659308674911,0.303952,23362.0,23358.0,0.08289902]
[1659308675150,0.73265816,23361.0,23358.0,0.08289902]
[1659308675382,0.05,23359.0,23358.0,0.08289902]
[1659308675621,0.45,23359.0,23358.0,0.00010479]
[1659308675849,1.23265816,23359.0,23358.0,0.00010479]
[1659308676315,0.78265816,23359.0,23358.0,0.07910479]
[1659308676544,0.8259996,23359.0,23358.0,0.07910479]
[1659308677237,0.7759996,23359.0,23358.0,0.07910479]
[1659308677475,0.8259996,23359.0,23358.0,0.07910479]
[1659308677697,0.8259996,23359.0,23358.0,0.00010479]
[1659308678338,0.8429996,23359.0,23358.0,0.06210479]
[1659308678558,0.7929996,23359.0,23358.0,0.06210479]
[1659308679005,0.8429996,23359.0,23358.0,0.06210479]
[1659308679432,1.33278502,23359.0,23358.0,0.06210479]
[1659308679658,1.31578502,23359.0,23358.0,0.00010479]
[1659308680395,1.39478502,23359.0,23358.0,0.00010479]
[1659308680616,1.44478502,23359.0,23350.0,0.04281251]
[1659308680862,1.03265816,23358.0,23350.0,0.04281251]
[1659308681089,0.73265816,23357.0,23350.0,0.04281251]
[1659308681318,0.32937344,23359.0,23350.0,0.04281251]
[1659308681319,0.73265816,23356.0,23350.0,0.04281251]
[1659308681545,0.73265816,23355.0,23350.0,0.04281251]
[1659308681762,0.73265816,23354.0,23350.0,0.04281251]
[1659308681994,0.42870616,23353.0,23350.0,0.04281251]
[1659308682230,0.1,23351.0,23349.0,0.2]
[1659308682473,0.403952,23351.0,23350.0,0.046]
[1659308682706,0.83265816,23351.0,23350.0,0.046]
[1659308682945,0.78265816,23351.0,23350.0,0.046]
[1659308683410,0.8259996,23351.0,23350.0,0.046]
[1659308683625,0.8259996,23351.0,23340.0,0.43152]
[1659308683840,0.42870616,23350.0,23341.0,0.07689]
[1659308684549,0.42870616,23350.0,23341.0,0.37689]
[1659308684783,0.42870616,23350.0,23341.0,0.85559616]
[1659308685046,0.42870616,23350.0,23342.0,0.3]
[1659308685296,0.42870616,23350.0,23343.0,0.04281716]
[1659308685563,0.4830476,23351.0,23344.0,0.07689]
[1659308685796,0.4720476,23351.0,23344.0,0.50559616]
[1659308686000,0.4720476,23351.0,23345.0,0.3]
[1659308686435,0.4990476,23351.0,23345.0,0.3]
[1659308687157,0.42870616,23350.0,23344.0,0.077]
[1659308687371,0.303952,23349.0,23344.0,0.077]
[1659308687595,0.42870616,23348.0,23343.0,0.14986016]
[1659308687830,0.42870616,23348.0,23344.0,0.07689]
[1659308688528,0.42870616,23348.0,23344.0,0.12689]
[1659308689708,0.280701,23356.0,23347.0,0.07689]
[1659308689709,0.42870616,23352.0,23347.0,0.07689]
[1659308689931,0.42870616,23355.0,23347.0,0.23391]
[1659308690173,0.42870616,23355.0,23348.0,0.191809]
[1659308690406,0.42870616,23355.0,23348.0,0.537918]
[1659308691057,0.42870616,23355.0,23349.0,0.0428049]
[1659308691295,0.42870616,23355.0,23350.0,0.07689]
[1659308691511,0.364,23358.0,23350.0,0.294793]
[1659308691512,0.42870616,23356.0,23350.0,0.294793]
[1659308691732,0.42870616,23356.0,23350.0,0.42689]
[1659308693531,0.42870616,23356.0,23350.0,0.533902]
[1659308694168,0.42870616,23356.0,23350.0,0.42689]
[1659308694339,0.303952,23355.0,23350.0,0.42689]
[1659308694604,0.42870616,23356.0,23350.0,0.42689]
[1659308694819,0.303952,23355.0,23350.0,0.42689]
[1659308695018,0.303952,23355.0,23350.0,0.07689]
[1659308695019,0.42870616,23355.0,23350.0,0.07689]
[1659308695248,0.73265816,23354.0,23349.0,0.0428049]
[1659308695426,0.73265816,23353.0,23349.0,0.0428049]
[1659308695773,0.303952,23351.0,23349.0,0.0428049]
[1659308696013,0.42870616,23353.0,23349.0,0.0428049]
[1659308696692,0.42870616,23353.0,23350.0,0.07689]
[1659308696910,0.42870616,23353.0,23350.0,0.37689]
[1659308697183,0.42870616,23353.0,23350.0,0.07689]
[1659308697624,0.4720476,23353.0,23350.0,0.07689]
[1659308697854,0.5220476,23353.0,23350.0,0.07689]
[1659308698067,0.42870616,23353.0,23350.0,0.07689]
[1659308698516,0.42870616,23353.0,23349.0,0.1998269]
[1659308698744,0.42870616,23353.0,23350.0,0.07689]
[1659308698968,0.42870616,23353.0,23349.0,0.1998269]
[1659308699201,0.42870616,23353.0,23350.0,0.07689]
[1659308699431,0.42870616,23353.0,23349.0,0.1998269]
[1659308699699,0.42870616,23353.0,23350.0,0.07689]
[1659308699919,0.42870616,23353.0,23349.0,0.1998269]
[1659308700107,0.42870616,23353.0,23350.0,0.07689]
[1659308700839,0.4285866,23353.0,23350.0,0.07689]
[1659308701860,0.47192804,23353.0,23350.0,0.07689]
[1659308702686,0.52192804,23353.0,23349.0,0.1998269]
[1659308702859,0.52192804,23353.0,23350.0,0.07689]
[1659308703058,0.47192804,23353.0,23349.0,0.1998269]
[1659308703467,0.303952,23352.0,23349.0,0.1998269]
[1659308703750,0.303952,23352.0,23350.0,0.07689]
[1659308703985,0.4285866,23353.0,23349.0,0.1998269]
[1659308704226,0.4285866,23353.0,23350.0,0.07689]
[1659308704451,0.303952,23352.0,23349.0,0.1998269]
[1659308704735,0.4285866,23353.0,23349.0,0.1998269]
[1659308704892,0.303952,23352.0,23349.0,0.1998269]
[1659308705124,0.303952,23351.0,23349.0,0.1998269]
[1659308705337,0.4285866,23353.0,23349.0,0.1998269]
[1659308705593,0.47870616,23351.0,23347.0,0.107026]
[1659308705834,0.05,23348.0,23347.0,0.107026]
[1659308706088,0.42870616,23348.0,23347.0,0.107026]
[1659308706309,0.78265816,23348.0,23347.0,0.107026]
[1659308706771,0.42870616,23348.0,23347.0,0.107026]
[1659308707236,0.42870616,23352.0,23347.0,0.107026]
[1659308707448,0.303952,23351.0,23348.0,0.0428141]
[1659308707670,0.303952,23350.0,23348.0,0.1498601]
[1659308707905,0.303952,23349.0,23348.0,0.1498601]
[1659308708157,0.50237446,23350.0,23348.0,0.1498601]
[1659308708378,0.7759996,23349.0,23345.0,0.107036]
[1659308708630,0.05,23346.0,23344.0,0.04282264]
[1659308708840,0.05,23346.0,23343.0,0.3769]
[1659308709066,0.05,23344.0,23343.0,0.3769]
[1659308709311,0.353952,23344.0,23343.0,0.3769]
[1659308709538,0.8259996,23344.0,23343.0,0.3769]
[1659308709758,0.78265816,23344.0,23343.0,0.2999]
[1659308710250,0.42870616,23344.0,23343.0,0.2999]
[1659308710490,0.4720476,23344.0,23343.0,0.2999]
[1659308710708,0.7759996,23344.0,23343.0,0.29978068]
[1659308710921,0.73265816,23344.0,23343.0,0.29978068]
[1659308711147,0.42870616,23344.0,23343.0,0.29978068]
[1659308711360,0.73265816,23344.0,23343.0,0.29978068]
[1659308711575,0.74132644,23344.0,23343.0,0.29978068]
[1659308712028,0.73265816,23344.0,23343.0,0.29978068]
[1659308712771,0.79132644,23344.0,23340.0,0.0428289]
[1659308713001,0.79132644,23344.0,23338.0,0.008]
[1659308713002,0.7,23339.0,23338.0,0.008]
[1659308713241,1.48265816,23339.0,23338.0,0.008]
[1659308713668,1.49132644,23339.0,23338.0,0.008]
[1659308713900,1.54132644,23339.0,23338.0,0.008]
[1659308714116,1.49132644,23339.0,23336.0,0.001]
[1659308714343,0.05,23337.0,23336.0,0.001]
[1659308714570,0.78265816,23337.0,23336.0,0.001]
[1659308716002,0.83265816,23337.0,23336.0,0.001]
[1659308716445,0.91165816,23337.0,23336.0,0.001]
[1659308716667,0.05,23335.0,23334.0,0.0001]